bitfinex/quotes_SOLUSD_20250106
["timestamp","ask_amount","ask_price","bid_price","bid_amount"]
[1736193270836,23.776884,220.59,220.54,12.02955134]
[1736193275738,37.3339289,220.61,220.53,13.5570449]
[1736193277155,37.3339289,220.61,220.53,8.68673071]
[1736193277156,32.46361471,220.61,220.53,8.68673071]
[1736193278355,8.68673071,220.56,220.48,8.1495]
[1736193278535,2.0,220.55,220.52,8.68673071]
[1736193279439,2.0,220.55,220.5,8.68673071]
[1736193280031,2.0,220.55,220.49,8.68673071]
[1736193281039,2.0,220.55,220.5,8.68673071]
[1736193282354,2.0,220.55,220.48,8.1495]
[1736193282559,23.776884,220.54,220.48,8.1495]
[1736193282856,32.46361471,220.54,220.48,6.5076]
[1736193283353,23.776884,220.5,220.43,1.5275]
[1736193283659,8.68673071,220.5,220.43,10.21423071]
[1736193284350,8.68673071,220.5,220.44,8.68673071]
[1736193284559,23.776884,220.5,220.44,8.68673071]
[1736193284757,32.46361471,220.5,220.44,8.68673071]
[1736193284933,20.0,220.49,220.38,6.0095]
[1736193285138,23.776884,220.47,220.38,6.0095]
[1736193285371,23.776884,220.47,220.41,8.68673071]
[1736193285538,2.0,220.48,220.45,8.68673071]
[1736193285868,2.0,220.48,220.38,6.0095]
[1736193286032,2.0,220.48,220.44,8.68673071]
[1736193286233,2.0,220.48,220.43,8.68673071]
[1736193286845,23.776884,220.47,220.42,8.68673071]
[1736193287648,23.776884,220.47,220.41,8.68673071]
[1736193288258,23.776884,220.47,220.42,8.68673071]
[1736193288481,23.776884,220.47,220.43,8.68673071]
[1736193291557,23.776884,220.47,220.42,8.68673071]
[1736193292488,23.776884,220.47,220.38,6.0095]
[1736193292765,23.776884,220.47,220.42,8.68673071]
[1736193295240,23.776884,220.47,220.43,8.68673071]
[1736193298771,23.776884,220.47,220.42,8.68673071]
[1736193301076,23.776884,220.47,220.38,6.0095]
[1736193301077,23.776884,220.45,220.38,6.0095]
[1736193301267,32.46361471,220.45,220.38,8.68673071]
[1736193301571,23.776884,220.45,220.4,8.68673071]
[1736193302351,32.46361471,220.47,220.41,8.68673071]
[1736193302873,32.46361471,220.47,220.4,8.68673071]
[1736193303073,8.68673071,220.46,220.39,8.68673071]
[1736193303787,23.776884,220.45,220.39,8.68673071]
[1736193303962,32.46361471,220.45,220.38,8.68673071]
[1736193305807,23.776884,220.45,220.39,8.68673071]
[1736193309275,8.68673071,220.47,220.39,8.68673071]
[1736193309576,23.776884,220.46,220.4,8.68673071]
[1736193309979,8.68673071,220.47,220.4,8.68673071]
[1736193310282,20.0,220.45,220.41,8.68673071]
[1736193310682,20.0,220.45,220.4,8.68673071]
[1736193311258,23.776884,220.48,220.41,8.68673071]
[1736193311461,23.776884,220.48,220.43,8.68673071]
[1736193311462,2.0,220.47,220.43,8.68673071]
[1736193312168,2.0,220.47,220.42,8.68673071]
[1736193313603,2.0,220.47,220.43,8.68673071]
[1736193313784,2.0,220.48,220.43,8.68673071]
[1736193314182,2.0,220.48,220.42,8.68673071]
[1736193315885,2.0,220.48,220.41,8.68673071]
[1736193316063,8.68673071,220.44,220.34,17.471]
[1736193316263,8.68673071,220.43,220.37,8.68673071]
[1736193316474,8.68673071,220.43,220.34,6.1255]
[1736193316475,8.68673071,220.42,220.35,8.68673071]
[1736193316788,8.68673071,220.42,220.34,6.1255]
[1736193316789,8.68673071,220.42,220.36,8.68673071]
[1736193317290,8.68673071,220.43,220.36,8.68673071]
[1736193318071,23.776884,220.42,220.36,8.68673071]
[1736193318275,8.68673071,220.41,220.34,8.68673071]
[1736193318477,10.68673071,220.41,220.34,8.68673071]
[1736193319570,10.68673071,220.41,220.35,8.68673071]
[1736193319767,2.0,220.41,220.35,8.68673071]
[1736193321103,2.0,220.41,220.36,8.68673071]
[1736193322369,2.0,220.41,220.35,8.68673071]
[1736193323887,10.68673071,220.41,220.34,8.68673071]
[1736193324593,2.0,220.41,220.35,8.68673071]
[1736193324806,2.0,220.41,220.36,8.68673071]
[1736193327488,2.0,220.41,220.38,8.68673071]
[1736193327897,2.0,220.41,220.33,36.38862284]
[1736193327898,2.0,220.41,220.33,1.6417]
[1736193328087,2.0,220.41,220.36,8.68673071]
[1736193328283,2.0,220.41,220.37,8.68673071]
[1736193328917,2.0,220.41,220.36,8.68673071]
[1736193329605,2.0,220.41,220.35,8.68673071]
[1736193329806,10.68673071,220.41,220.34,8.68673071]
[1736193331905,10.68673071,220.41,220.34,23.776884]
[1736193334208,10.68673071,220.41,220.34,8.68673071]
[1736193337303,2.0,220.41,220.37,8.68673071]
[1736193340416,2.0,220.41,220.39,8.68673071]
[1736193340623,2.0,220.44,220.4,8.68673071]
[1736193340791,2.0,220.44,220.39,8.68673071]
[1736193342620,2.0,220.45,220.39,8.68673071]
[1736193347520,30.27493071,220.46,220.39,8.68673071]
[1736193347810,2.0,220.45,220.39,8.68673071]
[1736193348715,2.0,220.45,220.4,8.68673071]
[1736193348905,20.0,220.46,220.41,8.68673071]
[1736193349098,2.0,220.45,220.4,8.68673071]
[1736193349299,2.0,220.45,220.34,23.776884]
[1736193349300,2.0,220.45,220.41,8.68673071]
[1736193349536,2.0,220.45,220.43,8.68673071]
[1736193350112,2.0,220.45,220.42,8.68673071]
[1736193352022,8.68673071,220.48,220.41,8.68673071]
[1736193352190,1.98,220.47,220.41,8.68673071]
[1736193357917,10.66673071,220.47,220.4,8.68673071]
[1736193358107,8.68673071,220.46,220.4,8.68673071]
[1736193360220,8.68673071,220.45,220.39,32.46361471]
[1736193360519,8.68673071,220.46,220.4,8.68673071]
[1736193362025,1.98,220.45,220.42,8.68673071]
[1736193362246,1.98,220.46,220.42,8.68673071]
[1736193362926,1.98,220.46,220.41,8.68673071]
[1736193363833,1.98,220.46,220.42,8.68673071]
[1736193364621,1.98,220.46,220.43,8.68673071]
[1736193364807,1.98,220.47,220.43,8.68673071]
[1736193365014,1.98,220.49,220.45,8.68673071]
[1736193365328,1.98,220.49,220.44,8.68673071]
[1736193366509,8.68673071,220.51,220.44,8.68673071]
[1736193366830,1.98,220.5,220.44,8.68673071]
[1736193367010,1.98,220.51,220.47,8.68673071]
[1736193370551,1.98,220.51,220.48,8.68673071]
[1736193371457,21.6112,220.58,220.49,8.68673071]
[1736193371659,1.98,220.57,220.49,8.68673071]
[1736193371830,8.68673071,220.56,220.49,8.68673071]
[1736193372341,8.68673071,220.55,220.49,8.68673071]
[1736193374046,1.98,220.54,220.49,8.68673071]
[1736193375367,10.66673071,220.55,220.49,8.68673071]
[1736193375665,1.98,220.58,220.53,8.68673071]
[1736193375827,8.68673071,220.6,220.53,8.68673071]
[1736193376175,1.98,220.59,220.53,8.68673071]
[1736193377557,21.6291,220.64,220.54,8.68673071]
[1736193377747,8.68673071,220.61,220.54,8.68673071]
[1736193377945,8.68673071,220.6,220.53,8.68673071]
[1736193378863,8.68673071,220.61,220.54,8.68673071]
[1736193379597,10.66673071,220.62,220.55,8.68673071]
[1736193380758,8.68673071,220.61,220.54,8.68673071]
[1736193381743,8.68673071,220.59,220.47,17.5255]
[1736193382082,8.68673071,220.57,220.5,8.68673071]
[1736193382287,8.68673071,220.58,220.51,8.68673071]
[1736193386070,8.68673071,220.59,220.52,8.68673071]
[1736193386855,8.68673071,220.58,220.51,8.68673071]
[1736193388779,8.68673071,220.58,220.52,8.68673071]
[1736193389156,8.68673071,220.55,220.47,6.1864]
[1736193389376,8.68673071,220.54,220.47,14.87313071]
[1736193390483,8.68673071,220.54,220.48,8.68673071]
[1736193390658,10.66673071,220.55,220.49,8.68673071]
[1736193390864,1.98,220.55,220.49,8.68673071]
[1736193392382,1.98,220.55,220.5,8.68673071]
[1736193393588,1.98,220.55,220.49,8.68673071]
[1736193393890,10.66673071,220.55,220.49,8.68673071]
[1736193394684,10.66673071,220.55,220.48,8.68673071]
[1736193395493,10.66673071,220.55,220.49,8.68673071]
[1736193397266,1.98,220.55,220.49,8.68673071]
[1736193398991,1.98,220.55,220.51,8.68673071]
[1736193399197,1.98,220.59,220.54,8.68673071]
[1736193399738,28.68673071,220.61,220.48,11.3388]
[1736193399739,1.98,220.61,220.56,8.68673071]
[1736193399999,1.98,220.62,220.56,8.68673071]
[1736193400214,1.98,220.62,220.57,8.68673071]
[1736193400364,1.98,220.63,220.57,8.68673071]
[1736193400568,1.98,220.63,220.58,8.68673071]
[1736193401201,1.98,220.63,220.59,8.68673071]
[1736193401696,8.68673071,220.65,220.59,8.68673071]
[1736193401885,1.98,220.65,220.59,8.68673071]
[1736193402087,1.6208,220.68,220.6,8.68673071]
[1736193402088,8.68673071,220.67,220.6,8.68673071]
[1736193402303,1.98,220.66,220.6,8.68673071]
[1736193402474,8.68673071,220.67,220.6,8.68673071]
[1736193402808,1.98,220.66,220.6,8.68673071]
[1736193403797,8.68673071,220.61,220.52,1.548]
[1736193403975,8.68673071,220.59,220.52,10.23473071]
[1736193405905,8.68673071,220.6,220.53,8.68673071]
[1736193406071,8.68673071,220.59,220.52,8.68673071]
[1736193406272,8.68673071,220.58,220.51,8.68673071]
[1736193406782,8.68673071,220.57,220.5,6.1228]
[1736193407098,8.68673071,220.57,220.5,14.80953071]
[1736193407495,1.98,220.59,220.51,8.68673071]
[1736193407700,10.66673071,220.59,220.52,8.68673071]
[1736193408197,8.68673071,220.58,220.51,8.68673071]
[1736193408704,8.68673071,220.57,220.5,14.80953071]
[1736193409391,1.98,220.59,220.51,8.68673071]
[1736193409392,8.68673071,220.58,220.51,8.68673071]
[1736193409989,10.66673071,220.59,220.52,8.68673071]
[1736193411114,1.98,220.59,220.52,8.68673071]
[1736193411284,10.66673071,220.59,220.52,8.68673071]
[1736193412217,8.68673071,220.58,220.52,8.68673071]
[1736193412808,1.98,220.59,220.5,6.1228]
[1736193412988,8.68673071,220.55,220.5,6.1228]
[1736193413195,8.68673071,220.57,220.5,14.80953071]
[1736193413798,28.68673071,220.58,220.51,8.68673071]
[1736193415009,11.80483449,220.75,220.53,8.68673071]
[1736193415010,11.3307,220.64,220.53,8.68673071]
[1736193415211,8.68673071,220.6,220.53,8.68673071]
[1736193415420,8.68673071,220.61,220.54,8.68673071]
[1736193420017,8.68673071,220.6,220.54,8.68673071]
[1736193420229,10.66673071,220.59,220.53,8.68673071]
[1736193421538,10.66673071,220.59,220.5,14.80953071]
[1736193421539,8.68673071,220.56,220.5,14.80953071]
[1736193422016,8.68673071,220.56,220.52,8.68673071]
[1736193422017,1.98,220.56,220.52,8.68673071]
[1736193422724,1.98,220.56,220.53,8.68673071]
[1736193426249,1.98,220.56,220.52,8.68673071]
[1736193426431,28.68673071,220.59,220.52,8.68673071]
[1736193426634,28.68673071,220.59,220.5,6.1228]
[1736193426635,8.68673071,220.57,220.5,6.1228]
[1736193426829,1.98,220.58,220.5,6.1228]
[1736193426830,8.68673071,220.56,220.5,6.1228]
[1736193427004,21.98,220.58,220.5,6.1228]
[1736193427231,8.68673071,220.56,220.5,6.1228]
[1736193429329,8.68673071,220.55,220.5,6.1228]
[1736193429533,8.68673071,220.54,220.46,7.5991]
[1736193429836,8.68673071,220.53,220.47,8.68673071]
[1736193430833,8.68673071,220.54,220.47,8.68673071]
[1736193431749,8.68673071,220.55,220.48,8.68673071]
[1736193436519,8.68673071,220.54,220.47,8.68673071]
[1736193436850,8.68673071,220.55,220.48,8.68673071]
[1736193438449,23.776884,220.57,220.46,7.5991]
[1736193438450,8.68673071,220.53,220.46,7.5991]
[1736193438622,23.776884,220.57,220.41,7.07060708]
[1736193438623,8.68673071,220.49,220.41,7.07060708]
[1736193438829,1.98,220.48,220.42,8.68673071]
[1736193439844,1.98,220.48,220.43,8.68673071]
[1736193440049,1.98,220.49,220.44,8.68673071]
[1736193440954,1.98,220.49,220.43,8.68673071]
[1736193441766,1.98,220.49,220.44,8.68673071]
[1736193442849,1.98,220.49,220.45,8.68673071]
[1736193443030,1.98,220.49,220.4,19.2204]
[1736193443031,1.98,220.49,220.46,8.68673071]
[1736193444354,10.66673071,220.49,220.4,19.2204]
[1736193444555,8.68673071,220.47,220.41,8.68673071]
[1736193445766,8.68673071,220.47,220.4,16.56463071]
[1736193446075,8.68673071,220.44,220.38,7.07060708]
[1736193446274,8.68673071,220.42,220.38,7.07060708]
[1736193446493,8.68673071,220.43,220.38,7.07060708]
[1736193446707,8.68673071,220.44,220.38,7.07060708]
[1736193447065,8.68673071,220.43,220.36,8.68673071]
[1736193447470,1.98,220.42,220.37,8.68673071]
[1736193448409,1.98,220.42,220.39,8.68673071]
[1736193448907,1.98,220.42,220.38,8.68673071]
[1736193449104,1.98,220.42,220.35,7.6869]
[1736193449417,1.98,220.42,220.36,8.68673071]
[1736193450298,1.98,220.42,220.37,8.68673071]
[1736193450504,1.98,220.42,220.38,8.68673071]
[1736193450672,1.98,220.42,220.39,8.68673071]
[1736193451599,1.98,220.42,220.38,8.68673071]
[1736193453298,1.98,220.42,220.37,8.68673071]
[1736193455487,1.98,220.42,220.36,8.68673071]
[1736193456004,10.66673071,220.42,220.35,14.82003071]
[1736193456377,10.66673071,220.42,220.36,8.68673071]
[1736193456577,1.98,220.42,220.36,8.68673071]
[1736193457803,10.66673071,220.42,220.3,1.5501]
[1736193458126,8.68673071,220.39,220.32,8.68673071]
[1736193459595,8.68673071,220.38,220.31,8.68673071]
[1736193459790,8.68673071,220.37,220.3,16.69073071]
[1736193460418,8.68673071,220.37,220.28,20.0]
[1736193460714,8.68673071,220.37,220.31,8.68673071]
[1736193461020,8.68673071,220.38,220.31,8.68673071]
[1736193462819,8.68673071,220.37,220.31,8.68673071]
[1736193463019,8.68673071,220.35,220.25,6.4539]
[1736193463193,10.66673071,220.35,220.28,8.68673071]
[1736193463521,8.68673071,220.34,220.27,8.68673071]
[1736193464124,10.66673071,220.35,220.28,8.68673071]
[1736193464416,10.66673071,220.35,220.25,6.4539]
[1736193464417,1.98,220.35,220.25,6.4539]
[1736193464633,1.98,220.35,220.3,8.68673071]
[1736193464824,1.98,220.35,220.25,17.8043]
[1736193464825,11.3418,220.43,220.34,8.68673071]
[1736193465119,1.98,220.4,220.35,8.68673071]
[1736193466325,1.98,220.4,220.36,8.68673071]
[1736193469136,1.98,220.4,220.35,8.68673071]
[1736193469939,1.98,220.4,220.34,8.68673071]
[1736193471449,1.98,220.4,220.31,21.6375]
[1736193471644,1.98,220.4,220.34,8.68673071]
[1736193471847,1.98,220.4,220.35,8.68673071]
[1736193472443,1.98,220.4,220.36,8.68673071]
[1736193472764,1.98,220.4,220.37,8.68673071]
[1736193472934,20.0,220.42,220.38,8.68673071]
[1736193473745,1.98,220.43,220.37,8.68673071]
[1736193474546,8.68673071,220.42,220.34,8.68673071]
[1736193474844,8.68673071,220.41,220.34,8.68673071]
[1736193475328,8.68673071,220.42,220.35,8.68673071]
[1736193476640,8.68673071,220.4,220.33,15.19513071]
[1736193477143,8.68673071,220.4,220.31,21.6375]
[1736193477144,8.68673071,220.38,220.31,10.32423071]
[1736193478242,8.68673071,220.39,220.32,8.68673071]
[1736193478418,8.68673071,220.4,220.33,8.68673071]
[1736193479449,8.68673071,220.41,220.34,8.68673071]
[1736193482662,1.98,220.43,220.34,8.68673071]
[1736193482965,1.98,220.43,220.35,8.68673071]
[1736193482966,8.68673071,220.42,220.35,8.68673071]
[1736193483671,8.68673071,220.41,220.34,8.68673071]
[1736193485855,10.66673071,220.41,220.34,8.68673071]
[1736193486580,10.66673071,220.41,220.31,1.6375]
[1736193486581,8.68673071,220.42,220.35,8.68673071]
[1736193486790,1.98,220.42,220.36,8.68673071]
[1736193486954,11.3399,220.46,220.39,8.68673071]
[1736193487160,1.98,220.46,220.41,8.68673071]
[1736193487376,20.0,220.45,220.39,8.68673071]
[1736193488980,20.0,220.45,220.4,8.68673071]
[1736193489482,1.98,220.46,220.4,8.68673071]
[1736193489867,1.98,220.46,220.41,8.68673071]
[1736193490388,8.68673071,220.48,220.41,8.68673071]
[1736193490571,1.98,220.47,220.41,8.68673071]
[1736193490769,8.68673071,220.47,220.4,8.68673071]
[1736193490969,8.68673071,220.45,220.39,1.5636]
[1736193491185,8.68673071,220.44,220.39,1.5636]
[1736193491369,8.68673071,220.44,220.37,8.68673071]
[1736193491567,8.68673071,220.43,220.37,8.68673071]
[1736193491768,8.68673071,220.41,220.34,1.5636]
[1736193491987,8.68673071,220.41,220.35,8.68673071]
[1736193493691,11.3399,220.46,220.35,8.68673071]
[1736193493692,8.68673071,220.42,220.35,8.68673071]
[1736193494078,8.68673071,220.42,220.36,8.68673071]
[1736193494694,8.68673071,220.41,220.35,8.68673071]
[1736193495080,8.68673071,220.41,220.34,10.25033071]
[1736193495278,8.68673071,220.39,220.34,1.5636]
[1736193495483,8.68673071,220.38,220.34,1.5636]
[1736193495890,8.68673071,220.38,220.33,6.2296]
[1736193496089,8.68673071,220.36,220.28,7.7695]
[1736193496290,1.98,220.4,220.28,7.7695]
[1736193496291,8.68673071,220.35,220.28,7.7695]
[1736193496595,8.68673071,220.35,220.29,8.68673071]
[1736193496783,8.68673071,220.36,220.29,8.68673071]
[1736193498493,8.68673071,220.36,220.3,8.68673071]
[1736193499001,8.68673071,220.37,220.3,8.68673071]
[1736193500123,8.68673071,220.39,220.32,8.68673071]
[1736193500398,8.68673071,220.38,220.31,8.68673071]
[1736193502903,8.68673071,220.39,220.32,8.68673071]
[1736193503106,1.98,220.4,220.35,8.68673071]
[1736193503289,1.98,220.43,220.3,24.45751038]
[1736193503610,1.98,220.43,220.37,8.68673071]
[1736193505075,10.66673071,220.43,220.36,8.68673071]
[1736193506416,10.66673071,220.43,220.37,8.68673071]
[1736193506417,1.98,220.43,220.37,8.68673071]
[1736193506715,10.66673071,220.43,220.36,8.68673071]
[1736193509220,8.68673071,220.42,220.35,8.68673071]
[1736193509825,10.66673071,220.43,220.36,8.68673071]
[1736193510419,8.68673071,220.42,220.35,8.68673071]
[1736193510825,10.66673071,220.43,220.36,8.68673071]
[1736193512120,8.68673071,220.42,220.35,8.68673071]
[1736193512420,1.98,220.43,220.34,8.68673071]
[1736193512421,8.68673071,220.41,220.34,8.68673071]
[1736193512596,8.68673071,220.4,220.33,8.68673071]
[1736193513430,8.68673071,220.4,220.34,8.68673071]
[1736193513617,1.98,220.43,220.34,8.68673071]
[1736193513811,8.68673071,220.41,220.34,8.68673071]
[1736193514707,8.68673071,220.4,220.33,8.68673071]
[1736193515621,8.68673071,220.38,220.28,26.15302594]
[1736193515799,8.68673071,220.37,220.3,8.68673071]
[1736193516000,8.68673071,220.38,220.31,8.68673071]
[1736193516437,8.68673071,220.37,220.3,8.68673071]
[1736193516926,8.68673071,220.37,220.28,26.15302594]
[1736193516927,8.68673071,220.37,220.31,8.68673071]
[1736193517729,8.68673071,220.37,220.3,8.68673071]
[1736193518824,8.68673071,220.37,220.31,8.68673071]
[1736193520547,8.68673071,220.38,220.32,8.68673071]
[1736193521031,8.68673071,220.38,220.31,8.68673071]
[1736193521217,8.68673071,220.37,220.3,8.68673071]
[1736193521554,1.98,220.36,220.3,8.68673071]
[1736193522739,1.98,220.36,220.28,19.1185]
[1736193522937,10.66673071,220.36,220.3,8.68673071]
[1736193524417,10.66673071,220.36,220.28,19.1185]
[1736193524418,8.68673071,220.32,220.26,7.03452594]
[1736193525133,8.68673071,220.31,220.24,15.72125665]
[1736193525521,8.68673071,220.31,220.25,8.68673071]
[1736193527249,8.68673071,220.32,220.26,8.68673071]
[1736193527551,8.68673071,220.33,220.26,8.68673071]
[1736193533750,8.68673071,220.33,220.22,6.3649]
[1736193533940,8.68673071,220.33,220.26,8.68673071]
[1736193534641,21.98,220.36,220.22,6.3649]
[1736193534642,8.68673071,220.35,220.28,8.68673071]
[1736193535221,1.98,220.36,220.24,11.3511]
[1736193535222,8.68673071,220.34,220.24,11.3511]
[1736193535422,8.68673071,220.34,220.27,8.68673071]
[1736193535756,8.68673071,220.33,220.27,8.68673071]
[1736193535956,8.68673071,220.34,220.27,8.68673071]
[1736193538426,8.68673071,220.35,220.28,8.68673071]
[1736193540152,8.68673071,220.34,220.27,8.68673071]
[1736193541554,8.68673071,220.35,220.28,8.68673071]
[1736193541738,8.68673071,220.33,220.26,8.68673071]
[1736193543334,8.68673071,220.34,220.27,8.68673071]
[1736193543856,8.68673071,220.33,220.25,8.68673071]
[1736193544434,8.68673071,220.33,220.26,8.68673071]
[1736193545248,8.68673071,220.35,220.27,8.68673071]
[1736193545456,28.68673071,220.34,220.27,8.68673071]
[1736193545755,20.0,220.34,220.28,8.68673071]
[1736193546831,8.68673071,220.33,220.22,17.7167]
[1736193547334,8.68673071,220.33,220.26,8.68673071]
[1736193547535,8.68673071,220.33,220.25,8.68673071]
[1736193548250,10.66673071,220.33,220.25,8.68673071]
[1736193548563,8.68673071,220.32,220.25,8.68673071]
[1736193552461,1.98,220.33,220.26,8.68673071]
[1736193552462,10.66673071,220.33,220.26,8.68673071]
[1736193552759,10.66673071,220.33,220.25,8.68673071]
[1736193556560,8.68673071,220.32,220.25,8.68673071]
[1736193556763,10.66673071,220.33,220.25,8.68673071]
[1736193563674,1.98,220.33,220.26,8.68673071]
[1736193563856,1.98,220.33,220.27,8.68673071]
[1736193564359,1.98,220.33,220.26,8.68673071]
[1736193569074,1.98,220.33,220.24,8.68673071]
[1736193573980,1.98,220.33,220.26,8.68673071]
[1736193575768,8.68673071,220.32,220.24,8.68673071]
[1736193575965,8.68673071,220.32,220.23,7.03452594]
[1736193576172,8.68673071,220.26,220.23,7.03452594]
[1736193576369,8.68673071,220.25,220.23,7.03452594]
[1736193576578,8.68673071,220.25,220.22,7.03452594]
[1736193577465,8.68673071,220.25,220.19,7.03452594]
[1736193577990,10.66673071,220.26,220.19,15.72125665]
[1736193578181,10.66673071,220.26,220.19,8.68673071]
[1736193584879,10.66673071,220.26,220.18,8.68673071]
[1736193587103,10.66673071,220.26,220.19,8.68673071]
[1736193589796,10.66673071,220.26,220.18,8.68673071]
[1736193591611,1.98,220.26,220.19,8.68673071]
[1736193591780,10.66673071,220.26,220.19,8.68673071]
[1736193591983,10.66673071,220.26,220.18,8.68673071]
[1736193592801,10.66673071,220.26,220.19,8.68673071]
[1736193593307,8.68673071,220.25,220.18,8.68673071]
[1736193593916,8.68673071,220.23,220.15,24.56746838]
[1736193594225,8.68673071,220.22,220.15,15.76329473]
[1736193594994,8.68673071,220.22,220.15,8.68673071]
[1736193595180,8.68673071,220.23,220.16,8.68673071]
[1736193595801,8.68673071,220.23,220.17,8.68673071]
[1736193596489,1.98,220.24,220.19,8.68673071]
[1736193597413,1.98,220.24,220.14,11.3564]
[1736193597414,1.98,220.24,220.18,8.68673071]
[1736193599602,10.66673071,220.24,220.18,8.68673071]
[1736193600298,8.68673071,220.23,220.14,18.43296402]
[1736193600498,8.68673071,220.23,220.16,8.68673071]
[1736193601017,8.68673071,220.22,220.16,8.68673071]
[1736193601716,8.68673071,220.22,220.14,11.3564]
[1736193602016,8.68673071,220.22,220.16,8.68673071]
[1736193602422,8.68673071,220.22,220.12,7.07656402]
[1736193602603,8.68673071,220.21,220.14,8.68673071]
[1736193602924,8.68673071,220.22,220.15,8.68673071]
[1736193603285,8.68673071,220.21,220.14,28.68673071]
[1736193603593,8.68673071,220.21,220.11,24.44437001]
[1736193603924,8.68673071,220.21,220.14,28.68673071]
[1736193604105,8.68673071,220.22,220.16,8.68673071]
[1736193604309,8.68673071,220.23,220.17,8.68673071]
[1736193604492,8.68673071,220.23,220.17,14.82213507]
[1736193604691,8.68673071,220.22,220.16,6.01000599]
[1736193605001,8.68673071,220.21,220.14,8.68673071]
[1736193605202,8.68673071,220.22,220.15,8.68673071]
[1736193605407,8.68673071,220.23,220.16,8.68673071]
[1736193606525,10.06766875,220.24,220.17,8.68673071]
[1736193606822,1.98,220.25,220.19,8.68673071]
[1736193607317,1.98,220.25,220.2,8.68673071]
[1736193607521,10.27913071,220.28,220.21,8.68673071]
[1736193607710,3.5724,220.28,220.23,8.68673071]
[1736193608023,8.68673071,220.25,220.18,8.68673071]
[1736193608323,8.68673071,220.27,220.2,8.68673071]
[1736193608517,8.68673071,220.26,220.19,8.68673071]
[1736193608720,1.5924,220.28,220.21,8.68673071]
[1736193608922,1.98,220.27,220.22,8.68673071]
[1736193609099,1.98,220.27,220.21,8.68673071]
[1736193609421,1.98,220.27,220.2,8.68673071]
[1736193609609,8.68673071,220.26,220.19,8.68673071]
[1736193609924,1.98,220.27,220.2,8.68673071]
[1736193610126,10.66673071,220.27,220.2,8.68673071]
[1736193610711,10.66673071,220.27,220.16,11.3553]
[1736193610712,8.68673071,220.26,220.19,8.68673071]
[1736193610904,10.66673071,220.27,220.2,8.68673071]
[1736193611102,1.98,220.27,220.21,8.68673071]
[1736193611313,1.98,220.27,220.15,1.5874]
[1736193611314,1.5924,220.28,220.23,8.68673071]
[1736193611505,1.5924,220.28,220.22,8.68673071]
[1736193611810,1.5924,220.28,220.19,11.3536]
[1736193611811,10.27913071,220.28,220.2,8.68673071]
[1736193612030,10.27913071,220.28,220.18,28.68673071]
[1736193612031,8.68673071,220.25,220.18,28.68673071]
[1736193612332,10.27913071,220.28,220.2,8.68673071]
[1736193612828,10.27913071,220.28,220.18,20.0]
[1736193612829,8.68673071,220.27,220.19,8.68673071]
[1736193613024,10.27913071,220.28,220.21,8.68673071]
[1736193613526,1.5924,220.28,220.23,8.68673071]
[1736193613699,1.5924,220.28,220.22,8.68673071]
[1736193614317,10.27913071,220.28,220.21,8.68673071]
[1736193614512,8.68673071,220.25,220.17,20.0]
[1736193614733,8.68673071,220.24,220.17,28.68673071]
[1736193614915,8.68673071,220.23,220.16,8.68673071]
[1736193615523,8.68673071,220.22,220.15,8.68673071]
[1736193616136,8.68673071,220.24,220.17,8.68673071]
[1736193616435,8.68673071,220.23,220.16,8.68673071]
[1736193617315,8.68673071,220.24,220.17,8.68673071]
[1736193617920,8.68673071,220.23,220.16,8.68673071]
[1736193618237,8.68673071,220.24,220.17,8.68673071]
[1736193618417,1.98,220.24,220.19,8.68673071]
[1736193618617,8.68673071,220.26,220.19,8.68673071]
[1736193618816,1.98,220.25,220.19,8.68673071]
[1736193619324,10.66673071,220.25,220.17,8.68673071]
[1736193619721,8.68673071,220.23,220.16,8.68673071]
[1736193619936,8.68673071,220.22,220.15,15.75821992]
[1736193620139,1.98,220.25,220.15,15.75821992]
[1736193620317,8.68673071,220.23,220.15,15.75821992]
[1736193620520,8.68673071,220.23,220.16,8.68673071]
[1736193620739,8.68673071,220.24,220.16,8.68673071]
[1736193624840,8.68673071,220.2,220.14,7.07148921]
[1736193625659,8.68673071,220.2,220.13,15.75821992]
[1736193627526,8.68673071,220.21,220.14,8.68673071]
[1736193628156,8.68673071,220.21,220.14,15.75821992]
[1736193628555,8.68673071,220.22,220.15,8.68673071]
[1736193628858,8.68673071,220.23,220.16,8.68673071]
[1736193629053,8.68673071,220.22,220.15,8.68673071]
[1736193630252,8.68673071,220.21,220.14,8.68673071]
[1736193631556,8.68673071,220.2,220.13,7.07148921]
[1736193632329,8.68673071,220.19,220.12,15.75821992]